fUST/lending_fUST_20251125
["ID","MTS","AMOUNT","RATE_DAILY","PERIOD"]
[394879489,1764053442898,-198.16367453,7.746e-05,2]
[394879490,1764053442907,-198.38610876,7.746e-05,2]
[394879493,1764053442916,-198.95816915,7.746e-05,2]
[394879495,1764053442926,-151.0,7.746e-05,2]
[394879497,1764053442934,-198.5348683,7.746e-05,2]
[394879498,1764053442944,-198.51698788,7.746e-05,2]
[394879501,1764053442954,-198.36921057,7.746e-05,2]
[394879503,1764053442963,-198.5559859,7.746e-05,2]
[394879505,1764053442972,-208.83710098,7.746e-05,2]
[394879507,1764053442981,-199.10219257,7.746e-05,2]
[394879509,1764053442990,-198.27391229,7.746e-05,2]
[394879511,1764053442999,-198.75324139,7.746e-05,2]
[394879513,1764053443008,-151.0,7.746e-05,2]
[394879515,1764053443018,-151.0,7.746e-05,2]
[394879518,1764053443027,-151.0,7.746e-05,2]
[394879520,1764053443036,-151.0,7.746e-05,2]
[394879522,1764053443044,-755.0,7.783e-05,2]
[394879524,1764053443054,-378.78,7.783e-05,2]
[394879526,1764053443064,-378.78,7.783e-05,2]
[394879528,1764053443073,-378.78,7.783e-05,2]
[394879530,1764053443083,-378.78,7.783e-05,2]
[394879532,1764053443092,-378.78,7.783e-05,2]
[394879534,1764053443102,-378.78,7.783e-05,2]
[394879536,1764053443112,-378.73,7.783e-05,2]
[394879538,1764053443122,-150.072,7.792e-05,2]
[394879540,1764053443132,-2035.75881862,7.837e-05,2]
[394879542,1764053443142,-151.0,7.883e-05,2]
[394879544,1764053443152,-151.0,7.883e-05,2]
[394879546,1764053443161,-151.0,7.883e-05,2]
[394879548,1764053443171,-151.0,7.883e-05,2]
[394879550,1764053443181,-151.0,7.883e-05,2]
[394879552,1764053443191,-729.95,7.891e-05,2]
[394879554,1764053443200,-729.95,7.899e-05,2]
[394879556,1764053443209,-1000.0,7.901e-05,2]
[394879558,1764053443218,-1000.0,7.901e-05,2]
[394879560,1764053443227,-1000.0,7.901e-05,2]
[394879562,1764053443236,-555.0,7.936e-05,2]
[394879564,1764053443246,-160.5,8e-05,2]
[394879566,1764053443255,-160.5,8e-05,2]
[394879568,1764053443264,-160.5,8e-05,2]
[394879570,1764053443273,-280.04246945,8.02e-05,2]
[394879572,1764053443283,-205.38495014,8.02e-05,2]
[394879574,1764053443293,-246.08531314,8.02e-05,2]
[394879576,1764053443302,-246.50834633,8.02e-05,2]
[394879578,1764053443311,-252.51997318,8.02e-05,2]
[394879580,1764053443322,-502.42348323,8.093e-05,2]
[394879582,1764053443331,-500.0,8.093e-05,2]
[394879584,1764053443340,-648.18025919,8.093e-05,2]
[394879586,1764053443350,-501.05528051,8.093e-05,2]
[394879588,1764053443359,-500.0,8.093e-05,2]
[394879590,1764053443369,-501.9116034,8.093e-05,2]
[394879592,1764053443379,-164.85513442,8.093e-05,2]
[394879594,1764053443392,-500.0,8.093e-05,2]
[394879596,1764053443401,-500.0,8.093e-05,2]
[394879597,1764053443410,-500.0,8.093e-05,2]
[394879600,1764053443421,-500.0,8.093e-05,2]
[394879601,1764053443431,-512.22107001,8.093e-05,2]
[394879603,1764053443440,-435.54742185,8.093e-05,2]
[394879605,1764053443450,-500.0,8.093e-05,2]
[394879607,1764053443460,-500.0,8.093e-05,2]
[394879610,1764053443469,-500.0,8.093e-05,2]
[394879612,1764053443479,-500.0,8.093e-05,2]
[394879614,1764053443488,-357.07973802,8.093e-05,2]
[394879616,1764053443497,-420.0,8.108e-05,2]
[394879618,1764053443506,-353.43546982,8.134e-05,2]
[394879620,1764053443514,-160.0,8.134e-05,2]
[394879621,1764053443524,-634.0,8.166e-05,2]
[394879622,1764053443534,-720.0,8.219e-05,2]
[394879623,1764053443543,-500.0,8.219e-05,2]
[394879624,1764053443552,-363.91120742,8.219e-05,2]
[394879625,1764053443561,-1500.0,8.448e-05,2]
[394879626,1764053443571,-602.96137039,8.448e-05,2]
[394879627,1764053443581,-1500.0,8.448e-05,2]
[394879628,1764053443591,-1927.61550144,8.464e-05,2]
[394879629,1764053443601,-500.97600332,8.5e-05,2]
[394879630,1764053443610,-1323.41496085,8.536e-05,2]
[394879632,1764053443620,-1000.0,8.641e-05,2]
[394879633,1764053443630,-517.50857627,8.641e-05,2]
[394879634,1764053443640,-1000.0,8.641e-05,2]
[394879635,1764053443649,-1000.0,8.641e-05,2]
[394879636,1764053443658,-506.96891342,8.641e-05,2]
[394879637,1764053443668,-1000.0,8.641e-05,2]
[394879638,1764053443677,-1000.0,8.641e-05,2]
[394879639,1764053443686,-405.78323431,8.641e-05,2]
[394879640,1764053443695,-154.98630771,8.641e-05,2]
[394879641,1764053443704,-1000.0,8.641e-05,2]
[394879642,1764053443713,-3069.0968819,8.65e-05,2]
[394879643,1764053443722,-1000.0,8.8e-05,2]
[394879644,1764053443731,-587.0,8.919e-05,2]
[394879645,1764053443740,-1927.61550144,8.981e-05,2]
[394879646,1764053443750,-2000.0,8.996e-05,2]
[394879647,1764053443759,-2000.0,8.996e-05,2]
[394879648,1764053443768,-1000.0,9e-05,2]
[394879649,1764053443778,-864.0,9.041e-05,2]
[394879650,1764053443787,-1000.0,9.1e-05,2]
[394879651,1764053443796,-302.65709838,9.158e-05,2]
[394879652,1764053443806,-1500.0,9.188e-05,2]
[394879653,1764053443815,-585.07991406,9.188e-05,2]
[394879654,1764053443824,-349.27258718,9.188e-05,2]
[394879655,1764053443833,-166.12544857,9.188e-05,2]
[394879656,1764053443843,-1073.69880255,9.188e-05,2]
[394879657,1764053443852,-1500.0,9.188e-05,2]
[394879658,1764053443862,-1927.61550144,9.499e-05,2]
[394879659,1764053443872,-179.49550222,9.544e-05,2]
[394879660,1764053443882,-2500.0,9.544e-05,2]
[394879662,1764053443891,-3069.0968819,9.663e-05,2]
[394879663,1764053443900,-422.52263937,9.736e-05,2]
[394879664,1764053443909,-2000.0,9.736e-05,2]
[394879665,1764053443919,-1000.00000001,9.8e-05,2]
[394879666,1764053443929,-823.0,9.811e-05,2]
[394879668,1764053443939,-1000.0,9.945e-05,2]
[394879669,1764053443949,-1427.7901252,0.0001,2]
[394879670,1764053443959,-13439.0,0.0001,2]
[394879671,1764053443969,-151.0,0.0001,2]
[394879672,1764053443979,-271.489085,0.0001,2]
[394879673,1764053443989,-151.15987065,0.0001,2]
[394879674,1764053443998,-151.0,0.0001,2]
[394879676,1764053444007,-151.0,0.0001,2]
[394879678,1764053444017,-151.0,0.0001,2]
[394879680,1764053444027,-151.0,0.0001,2]
[394879682,1764053444037,-151.0,0.0001,2]
[394879684,1764053444046,-151.0,0.0001,2]
[394879686,1764053444055,-151.0,0.0001,2]
[394879688,1764053444064,-151.0,0.0001,2]
[394879690,1764053444073,-151.0,0.0001,2]
[394879692,1764053444083,-151.0,0.0001,2]
[394879694,1764053444092,-151.0,0.0001,2]
[394879696,1764053444101,-151.0,0.0001,2]
[394879698,1764053444110,-151.0,0.0001,2]
[394879700,1764053444119,-151.0,0.0001,2]
[394879702,1764053444131,-151.0,0.0001,2]
[394879703,1764053444140,-151.0,0.0001,2]
[394879705,1764053444150,-151.0,0.0001,2]
[394879707,1764053444160,-151.0,0.0001,2]
[394879709,1764053444169,-151.0,0.0001,2]
[394879711,1764053444179,-153.13671639,0.0001,2]
[394879714,1764053444189,-181.08010149,0.0001,2]
[394879715,1764053444198,-1927.61550144,0.00010016,2]
[394879717,1764053444207,-3000.0,0.00010092,2]
[394879719,1764053444216,-2500.0,0.00010284,2]
[394879721,1764053444225,-250.0,0.00010411,2]
[394879722,1764053444235,-990.0,0.0001049,2]
[394879723,1764053444244,-630.0,0.0001049,2]
[394879724,1764053444253,-2152.0,0.0001049,2]
[394879725,1764053444262,-414.0,0.0001049,2]
[394879726,1764053444271,-1927.61550144,0.00010533,2]
[394879727,1764053444280,-187.78006525,0.00010548,2]
[394879728,1764053444290,-2909.13235733,0.0001064,2]
[394879729,1764053444299,-1152.0,0.00010792,2]
[394879730,1764053444308,-3000.0,0.00010832,2]
[394879731,1764053444318,-1000.0,0.0001094,2]
[394879732,1764053444328,-244.0,0.0001094,2]
[394879733,1764053444337,-403.14778157,0.00010958,2]
[394879734,1764053444347,-454.09139565,0.00010958,2]
[394879735,1764053444356,-520.86,0.00010958,2]
[394879736,1764053444366,-549.40629022,0.00010958,2]
[394879737,1764053444380,-509.7586574,0.00010958,2]
[394879738,1764053444389,-500.0,0.00010958,2]
[394879739,1764053444399,-500.0,0.00010958,2]
[394879740,1764053444409,-500.0,0.00010958,2]
[394879741,1764053444418,-348.64223251,0.00010958,2]
[394879742,1764053444428,-500.0,0.00010958,2]
[394879743,1764053444437,-663.15,0.00010958,2]
[394879744,1764053444447,-500.0,0.00010958,2]
[394879745,1764053444458,-500.0,0.00010958,2]
[394879746,1764053444468,-500.0,0.00010958,2]
[394879747,1764053444478,-500.0,0.00010958,2]
[394879748,1764053444488,-500.0,0.00010958,2]
[394879749,1764053444498,-500.0,0.00010958,2]
[394879750,1764053444509,-402.43438891,0.00010958,2]
[394879751,1764053444519,-500.0,0.00010958,2]
[394879752,1764053444667,-500.0,0.00010958,2]
[394879753,1764053444682,-556.00109604,0.00010958,2]
[394879754,1764053444693,-500.0,0.00010958,2]
[394879755,1764053444703,-333.94406485,0.00010958,2]
[394879756,1764053444713,-500.0,0.00010958,2]
[394879757,1764053444723,-529.52642937,0.00010958,2]
[394879758,1764053444733,-500.0,0.00010958,2]
[394879759,1764053444743,-296.24211286,0.00010958,2]
[394879760,1764053444753,-342.2936878,0.00010958,2]
[394879761,1764053444763,-500.0,0.00010958,2]
[394879762,1764053444773,-519.97,0.00010958,2]
[394879763,1764053444783,-438.51865576,0.00010958,2]
[394879764,1764053444793,-536.4646685,0.00010958,2]
[394879765,1764053444803,-500.0,0.00010958,2]
[394879766,1764053444812,-500.0,0.00010958,2]
[394879767,1764053444822,-500.0,0.00010958,2]
[394879768,1764053444832,-500.0,0.00010958,2]
[394879769,1764053444841,-416.22460944,0.00010958,2]
[394879770,1764053444851,-370.99390779,0.00010958,2]
[394879771,1764053444860,-500.0,0.00010958,2]
[394879772,1764053444869,-207.00727322,0.00010958,2]
[394879773,1764053444880,-500.0,0.00010958,2]
[394879774,1764053444890,-385.457641,0.00010958,2]
[394879776,1764053444900,-576.95675847,0.00010958,2]
[394879777,1764053444909,-225.45460372,0.00010958,2]
[394879778,1764053444918,-497.96231184,0.00010958,2]
[394879779,1764053444927,-257.79218546,0.00010958,2]
[394879780,1764053444937,-550.98407572,0.00010958,2]
[394879781,1764053444946,-500.0,0.00010958,2]
[394879782,1764053444955,-500.0,0.00010958,2]
[394879783,1764053444964,-500.0,0.00010958,2]
[394879784,1764053444975,-458.2757381,0.00010958,2]
[394879785,1764053444985,-521.07763037,0.00010958,2]
[394879786,1764053444995,-500.0,0.00010958,2]
[394879787,1764053445005,-500.0,0.00010958,2]
[394879788,1764053445014,-500.0,0.00010958,2]
[394879789,1764053445023,-520.87286372,0.00010958,2]
[394879790,1764053445033,-375.16926263,0.00010958,2]
[394879791,1764053445045,-500.0,0.00010958,2]
[394879792,1764053445055,-500.0,0.00010958,2]
[394879793,1764053445064,-500.0,0.00010958,2]
[394879794,1764053445075,-194.96203629,0.00010958,2]
[394879795,1764053445085,-519.90671605,0.00010958,2]
[394879796,1764053445095,-500.0,0.00010958,2]
[394879797,1764053445105,-500.0,0.00010958,2]
[394879798,1764053445115,-524.07738067,0.00010958,2]
[394879799,1764053445125,-500.0,0.00010958,2]
[394879800,1764053445135,-151.0,0.00010958,2]
[394879801,1764053445145,-500.0,0.00010958,2]
[394879802,1764053445154,-151.0,0.00010958,2]
[394879803,1764053445164,-500.0,0.00010958,2]
[394879804,1764053445173,-151.0,0.00010958,2]
[394879805,1764053445183,-151.0,0.00010958,2]
[394879806,1764053445194,-151.0,0.00010958,2]
[394879807,1764053445203,-151.0,0.00010958,2]
[394879808,1764053445213,-296.512872,0.00010958,2]
[394879809,1764053445223,-321.98268563,0.00010958,2]
[394879810,1764053445232,-500.0,0.00010958,2]
[394879811,1764053445242,-500.0,0.00010958,2]
[394879812,1764053445251,-500.0,0.00010958,2]
[394879813,1764053445261,-3246.46,0.00010958,2]
[394879814,1764053445270,-500.0,0.00010958,2]
[394879815,1764053445280,-500.0,0.00010958,2]
[394879816,1764053445290,-1140.97,0.00010958,2]
[394879817,1764053445299,-500.0,0.00010958,2]
[394879818,1764053445308,-1000.0,0.00010958,2]
[394879819,1764053445317,-500.0,0.00010958,2]
[394879820,1764053445326,-500.0,0.00010958,2]
[394879821,1764053445335,-712.52,0.00010958,2]
[394879822,1764053445344,-385.67571101,0.00010958,2]
[394879823,1764053445354,-500.0,0.00010958,2]
[394879824,1764053445363,-253.52494463,0.00010958,2]
[394879825,1764053445373,-3463.96,0.00010958,2]
[394879826,1764053445386,-500.0,0.00010958,2]
[394879827,1764053445395,-500.0,0.00010958,2]
[394879828,1764053445406,-618.33,0.00010958,2]
[394879829,1764053445416,-633.08,0.00010958,2]
[394879830,1764053445426,-500.0,0.00010958,2]
[394879831,1764053445436,-417.49661723,0.00010958,2]
[394879832,1764053445446,-526.78247971,0.00010958,2]
[394879833,1764053445456,-500.0,0.00010958,2]
[394879834,1764053445468,-531.17422367,0.00010958,2]
[394879835,1764053445478,-500.0,0.00010958,2]
[394879836,1764053445488,-500.0,0.00010958,2]
[394879837,1764053445498,-500.0,0.00010958,2]
[394879838,1764053445507,-563.2802437,0.00010958,2]
[394879839,1764053445516,-551.63,0.00010958,2]
[394879840,1764053445527,-428.47501687,0.00010958,2]
[394879841,1764053445537,-500.0,0.00010958,2]
[394879842,1764053445547,-500.0,0.00010958,2]
[394879843,1764053445558,-500.0,0.00010958,2]
[394879844,1764053445567,-465.37445116,0.00010958,2]
[394879845,1764053445577,-659.59,0.00010958,2]
[394879846,1764053445587,-246.55365839,0.00010958,2]
[394879847,1764053445596,-500.0,0.00010958,2]
[394879848,1764053445606,-359.38174705,0.00010958,2]
[394879849,1764053445615,-547.74376577,0.00010958,2]
[394879850,1764053445626,-500.0,0.00010958,2]
[394879851,1764053445635,-729.47,0.00010958,2]
[394879852,1764053445645,-516.9109794,0.00010958,2]
[394879853,1764053445655,-500.0,0.00010958,2]
[394879854,1764053445664,-807.9,0.00010958,2]
[394879855,1764053445674,-500.0,0.00010958,2]
[394879856,1764053445684,-500.0,0.00010958,2]
[394879857,1764053445693,-578.11408772,0.00010958,2]
[394879858,1764053445703,-500.0,0.00010958,2]
[394879859,1764053445714,-879.57,0.00010958,2]
[394879860,1764053445724,-519.63755722,0.00010958,2]
[394879861,1764053445734,-171.48827517,0.00010958,2]
[394879862,1764053445744,-500.0,0.00010958,2]
[394879863,1764053445754,-500.0,0.00010958,2]
[394879864,1764053445764,-519.20987134,0.00010958,2]
[394879865,1764053445774,-500.0,0.00010958,2]
[394879866,1764053445784,-500.0,0.00010958,2]
[394879867,1764053445793,-500.0,0.00010958,2]
[394879868,1764053445803,-500.0,0.00010958,2]
[394879869,1764053445812,-500.0,0.00010958,2]
[394879870,1764053445822,-500.0,0.00010958,2]
[394879871,1764053445831,-500.0,0.00010958,2]
[394879872,1764053445841,-500.0,0.00010958,2]
[394879873,1764053445850,-500.0,0.00010958,2]
[394879874,1764053445859,-500.0,0.00010958,2]
[394879875,1764053445869,-1943.81,0.00010958,2]
[394879876,1764053445880,-500.0,0.00010958,2]
[394879878,1764053445891,-500.0,0.00010958,2]
[394879879,1764053445900,-500.0,0.00010958,2]
[394879880,1764053445909,-500.0,0.00010958,2]
[394879881,1764053445918,-2710.36,0.00010958,2]
[394879882,1764053445928,-581.82895607,0.00010958,2]
[394879883,1764053445937,-534.95709207,0.00010958,2]
[394879884,1764053445947,-569.59,0.00010958,2]
[394879885,1764053445957,-526.99323098,0.00010958,2]
[394879886,1764053445967,-717.97,0.00010958,2]
[394879887,1764053445976,-500.0,0.00010958,2]
[394879888,1764053445986,-500.0,0.00010958,2]
[394879889,1764053445996,-552.93667424,0.00010958,2]
[394879890,1764053446005,-500.0,0.00010958,2]
[394879892,1764053446015,-1197.75,0.00010958,2]
[394879894,1764053446025,-500.0,0.00010958,2]
[394879895,1764053446034,-633.98,0.00010958,2]
[394879896,1764053446043,-500.0,0.00010958,2]
[394879897,1764053446053,-500.0,0.00010958,2]
[394879898,1764053446062,-500.0,0.00010958,2]
[394879899,1764053446072,-510.942003,0.00010958,2]
[394879900,1764053446081,-500.0,0.00010958,2]
[394879901,1764053446091,-500.0,0.00010958,2]
[394879902,1764053446100,-500.0,0.00010958,2]
[394879903,1764053446111,-1134.87,0.00010958,2]
[394879904,1764053446127,-451.48670563,0.00010958,2]
[394879905,1764053446147,-641.92,0.00010958,2]
[394879906,1764053446157,-413.14293716,0.00010958,2]
[394879907,1764053446166,-2623.36,0.00010958,2]
[394879908,1764053446176,-627.87,0.00010958,2]
[394879909,1764053446186,-500.0,0.00010958,2]
[394879910,1764053446195,-560.75285751,0.00010958,2]
[394879911,1764053446204,-500.0,0.00010958,2]
[394879912,1764053446214,-500.0,0.00010958,2]
[394879913,1764053446223,-532.76580524,0.00010958,2]
[394879914,1764053446232,-1639.14,0.00010958,2]
[394879915,1764053446242,-500.0,0.00010958,2]
[394879916,1764053446251,-2141.71,0.00010958,2]
[394879918,1764053446260,-500.0,0.00010958,2]
[394879920,1764053446270,-500.0,0.00010958,2]
[394879922,1764053446279,-1310.34,0.00010958,2]
[394879924,1764053446289,-500.0,0.00010958,2]
[394879926,1764053446298,-551.62382708,0.00010958,2]
[394879928,1764053446307,-500.0,0.00010958,2]
[394879929,1764053446317,-500.0,0.00010958,2]
[394879931,1764053446327,-500.0,0.00010958,2]
[394879933,1764053446336,-500.0,0.00010958,2]
[394879935,1764053446345,-500.0,0.00010958,2]
[394879936,1764053446354,-500.0,0.00010958,2]
[394879937,1764053446363,-500.0,0.00010958,2]
[394879938,1764053446373,-501.91710782,0.00010958,2]
[394879939,1764053446386,-558.15121003,0.00010958,2]
[394879941,1764053446395,-500.0,0.00010958,2]
[394879942,1764053446405,-546.39886015,0.00010958,2]
[394879943,1764053446414,-1307.59,0.00010958,2]
[394879944,1764053446425,-500.0,0.00010958,2]
[394879945,1764053446434,-500.0,0.00010958,2]
[394879946,1764053446443,-520.0212412,0.00010958,2]
[394879947,1764053446452,-500.0,0.00010958,2]
[394879948,1764053446465,-500.0,0.00010958,2]
[394879949,1764053446474,-1448.08,0.00010958,2]
[394879950,1764053446484,-500.0,0.00010958,2]
[394879951,1764053446493,-500.0,0.00010958,2]
[394879952,1764053446503,-206.0013073,0.00010958,2]
[394879953,1764053446514,-500.0,0.00010958,2]
[394879954,1764053446523,-475.40764716,0.00010958,2]
[394879955,1764053446533,-500.0,0.00010958,2]
[394879956,1764053446543,-1001.03,0.00010958,2]
[394879957,1764053446552,-500.0,0.00010958,2]
[394879958,1764053446562,-725.87,0.00010958,2]
[394879959,1764053446572,-500.0,0.00010958,2]
[394879960,1764053446581,-500.0,0.00010958,2]
[394879961,1764053446591,-151.0,0.00010958,2]
[394879962,1764053446600,-151.0,0.00010958,2]
[394879963,1764053446609,-151.0,0.00010958,2]
[394879964,1764053446618,-151.646416,0.00010958,2]
[394879965,1764053446627,-424.18177215,0.00010958,2]
[394879966,1764053446636,-500.0,0.00010958,2]
[394879967,1764053446645,-1134.38,0.00010958,2]
[394879968,1764053446654,-500.0,0.00010958,2]
[394879969,1764053446664,-509.47161617,0.00010958,2]
[394879970,1764053446673,-500.0,0.00010958,2]
[394879971,1764053446682,-500.0,0.00010958,2]
[394879972,1764053446691,-500.0,0.00010958,2]
[394879973,1764053446700,-500.0,0.00010958,2]
[394879975,1764053446709,-500.0,0.00010958,2]
[394879976,1764053446719,-607.8,0.00010958,2]
[394879977,1764053446728,-500.0,0.00010958,2]
[394879978,1764053446737,-199.28310182,0.00010958,2]
[394879979,1764053446747,-500.0,0.00010958,2]
[394879980,1764053446756,-500.0,0.00010958,2]
[394879981,1764053446765,-190.6572474,0.00010958,2]
[394879982,1764053446774,-500.0,0.00010958,2]
[394879984,1764053446784,-500.0,0.00010958,2]
[394879985,1764053446793,-500.0,0.00010958,2]
[394879986,1764053446803,-500.0,0.00010958,2]
[394879987,1764053446812,-565.32074849,0.00010958,2]
[394879988,1764053446821,-500.0,0.00010958,2]
[394879989,1764053446830,-498.3340734,0.00010958,2]
[394879990,1764053446839,-2337.7,0.00010958,2]
[394879991,1764053446848,-613.35,0.00010958,2]
[394879992,1764053446857,-510.49959773,0.00010958,2]
[394879993,1764053446866,-500.0,0.00010958,2]
[394879994,1764053446875,-517.99145496,0.00010958,2]
[394879995,1764053446886,-500.0,0.00010958,2]
[394879996,1764053446895,-614.89,0.00010958,2]
[394879997,1764053446905,-500.0,0.00010958,2]
[394879998,1764053446915,-499.59730207,0.00010958,2]
[394879999,1764053446925,-500.0,0.00010958,2]
[394880000,1764053446936,-500.0,0.00010958,2]
[394880001,1764053446945,-500.03707589,0.00010958,2]
[394880002,1764053446955,-377.55716639,0.00010958,2]
[394880003,1764053446965,-518.29669017,0.00010958,2]
[394880004,1764053446975,-396.12481657,0.00010958,2]
[394880005,1764053446984,-284.75955383,0.00010958,2]
[394880006,1764053446994,-397.98738176,0.00010958,2]
[394880007,1764053447003,-201.47634472,0.00010958,2]
[394880008,1764053447013,-1698.99,0.00010958,2]
[394880009,1764053447022,-500.0,0.00010958,2]
[394880010,1764053447031,-1012.98,0.00010958,2]
[394880011,1764053447041,-1760.11,0.00010958,2]
[394880012,1764053447051,-559.81503751,0.00010958,2]
[394880013,1764053447061,-500.0,0.00010958,2]
[394880014,1764053447071,-500.0,0.00010958,2]
[394880015,1764053447125,-500.0,0.00010958,2]
[394880016,1764053447135,-500.0,0.00010958,2]
[394880017,1764053447145,-500.0,0.00010958,2]
[394880018,1764053447154,-507.05,0.00010958,2]
[394880019,1764053447163,-499.77978008,0.00010958,2]
[394880020,1764053447172,-535.25756651,0.00010958,2]
[394880021,1764053447181,-500.0,0.00010958,2]
[394880022,1764053447190,-500.0,0.00010958,2]
[394880023,1764053447200,-400.60734126,0.00010958,2]
[394880024,1764053447217,-500.0,0.00010958,2]
[394880025,1764053447227,-500.0,0.00010958,2]
[394880026,1764053447237,-500.0,0.00010958,2]
[394880027,1764053447247,-500.0,0.00010958,2]
[394880028,1764053447257,-754.51,0.00010958,2]
[394880029,1764053447267,-443.75940586,0.00010958,2]
[394880030,1764053447277,-500.0,0.00010958,2]
[394880031,1764053447287,-527.04,0.00010958,2]
[394880032,1764053447296,-500.0,0.00010958,2]
[394880033,1764053447306,-500.0,0.00010958,2]
[394880034,1764053447316,-219.52549863,0.00010958,2]
[394880035,1764053447326,-500.0,0.00010958,2]
[394880036,1764053447335,-500.0,0.00010958,2]
[394880037,1764053447344,-500.0,0.00010958,2]
[394880038,1764053447353,-178.97357557,0.00010958,2]
[394880039,1764053447362,-560.90216084,0.00010958,2]
[394880040,1764053447371,-500.0,0.00010958,2]
[394880041,1764053447380,-560.71463773,0.00010958,2]
[394880042,1764053447393,-500.0,0.00010958,2]
[394880043,1764053447402,-500.0,0.00010958,2]
[394880044,1764053447411,-1457.17,0.00010958,2]
[394880045,1764053447421,-500.0,0.00010958,2]
[394880046,1764053447430,-500.0,0.00010958,2]
[394880047,1764053447439,-500.0,0.00010958,2]
[394880048,1764053447449,-500.0,0.00010958,2]
[394880049,1764053447458,-500.0,0.00010958,2]
[394880050,1764053447468,-500.0,0.00010958,2]
[394880051,1764053447477,-500.0,0.00010958,2]
[394880052,1764053447485,-1675.45,0.00010958,2]
[394880053,1764053447495,-500.0,0.00010958,2]
[394880054,1764053447504,-530.53,0.00010958,2]
[394880055,1764053447513,-500.0,0.00010958,2]
[394880056,1764053447522,-500.0,0.00010958,2]
[394880057,1764053447531,-500.0,0.00010958,2]
[394880058,1764053447540,-500.0,0.00010958,2]
[394880059,1764053447549,-487.98576957,0.00010958,2]
[394880060,1764053447559,-500.0,0.00010958,2]
[394880061,1764053447568,-500.0,0.00010958,2]
[394880062,1764053447577,-165.03125172,0.00010958,2]
[394880063,1764053447586,-3623.68,0.00010958,2]
[394880064,1764053447596,-500.0,0.00010958,2]
[394880065,1764053447605,-500.0,0.00010958,2]
[394880066,1764053447614,-616.87,0.00010958,2]
[394880067,1764053447623,-1339.37,0.00010958,2]
[394880068,1764053447633,-500.0,0.00010958,2]
[394880069,1764053447642,-500.0,0.00010958,2]
[394880070,1764053447652,-350.12883875,0.00010958,2]
[394880071,1764053447661,-1300.95,0.00010958,2]
[394880072,1764053447670,-500.0,0.00010958,2]
[394880073,1764053447679,-500.0,0.00010958,2]
[394880074,1764053447688,-500.0,0.00010958,2]
[394880075,1764053447697,-500.0,0.00010958,2]
[394880076,1764053447707,-536.07913794,0.00010958,2]
[394880077,1764053447716,-500.0,0.00010958,2]
[394880078,1764053447725,-528.75100021,0.00010958,2]
[394880079,1764053447734,-1121.47,0.00010958,2]
[394880080,1764053447743,-500.0,0.00010958,2]
[394880081,1764053447753,-500.0,0.00010958,2]
[394880082,1764053447762,-276.63545583,0.00010958,2]
[394880083,1764053447771,-500.0,0.00010958,2]
[394880084,1764053447780,-500.0,0.00010958,2]
[394880085,1764053447790,-554.86,0.00010958,2]
[394880086,1764053447799,-255.73661174,0.00010958,2]
[394880087,1764053447808,-500.0,0.00010958,2]
[394880088,1764053447817,-500.0,0.00010958,2]
[394880089,1764053447826,-517.68,0.00010958,2]
[394880090,1764053447835,-751.94,0.00010958,2]
[394880091,1764053447844,-517.18346443,0.00010958,2]
[394880092,1764053447857,-503.33660304,0.00010958,2]
[394880093,1764053447877,-164.45984525,0.00010958,2]
[394880094,1764053447896,-519.43703209,0.00010958,2]
[394880095,1764053447906,-512.83331226,0.00010958,2]
[394880096,1764053447916,-500.0,0.00010958,2]